bitfinex-derivatives/quotes_ETHF0:USTF0_20250114
["timestamp","ask_amount","ask_price","bid_price","bid_amount"]
[1736825182197,0.31533,3172.8,3172.6,3.2078]
[1736825182500,0.31533,3172.7,3172.6,3.2078]
[1736825183498,0.31532,3172.8,3172.6,3.2078]
[1736825183697,0.481,3173.1,3172.6,3.2078]
[1736825183902,0.31533,3172.7,3172.6,3.2078]
[1736825184403,0.31535,3172.5,3172.4,0.4696]
[1736825185707,0.481,3173.1,3172.4,0.4696]
[1736825186008,0.31534,3172.6,3172.4,3.00402272]
[1736825186504,0.31535,3172.5,3172.4,3.00402272]
[1736825187008,0.481,3173.1,3172.4,3.00402272]
[1736825187203,0.31535,3172.5,3172.4,3.00402272]
[1736825187800,0.31535,3172.5,3172.4,0.4696]
[1736825189100,0.31537,3172.3,3172.2,3.2078]
[1736825191397,3.44493926,3172.4,3171.5,3.2078]
[1736825191706,0.31548,3171.1,3171.0,3.2078]
[1736825192708,3.01212272,3171.4,3170.5,3.2078]
[1736825193005,0.31553,3170.6,3170.5,3.2078]
[1736825194509,3.2078,3170.7,3170.2,2.98552272]
[1736825194715,3.2078,3170.7,3170.0,1.265]
[1736825194903,0.31555,3170.4,3170.0,1.58059]
[1736825195105,0.31555,3170.4,3170.0,1.7161]
[1736825195407,0.31557,3170.3,3170.0,0.4511]
[1736825197214,3.2078,3170.7,3170.0,2.98552272]
[1736825197419,3.52333,3170.7,3170.3,2.53442272]
[1736825198110,3.2078,3170.7,3170.3,2.53442272]
[1736825198609,3.2078,3170.7,3170.5,0.31554]
[1736825198805,3.2078,3171.1,3170.7,0.31552]
[1736825199010,3.52329,3171.1,3170.8,0.9412]
[1736825199514,3.2078,3171.1,3170.5,1.265]
[1736825199913,0.31551,3170.9,3170.5,1.72]
[1736825200115,0.31551,3170.9,3170.5,2.2062]
[1736825200312,0.31552,3170.8,3170.5,0.9412]
[1736825200916,0.4703,3171.0,3170.5,0.9412]
[1736825201121,0.31553,3170.7,3170.5,0.9412]
[1736825201314,0.4703,3171.0,3170.5,0.9412]
[1736825201519,0.31552,3170.8,3170.5,0.9412]
[1736825201819,0.31553,3170.7,3170.5,0.9412]
[1736825203318,0.9319,3171.0,3170.5,0.9412]
[1736825203517,0.4703,3171.0,3170.5,0.9412]
[1736825203915,0.31552,3170.8,3170.5,0.9412]
[1736825204112,0.4703,3171.0,3170.5,0.9412]
[1736825204311,0.3155,3170.9,3170.5,0.9412]
[1736825204716,0.31553,3170.6,3170.5,0.9412]
[1736825205613,0.31553,3170.6,3170.5,0.455]
[1736825207946,0.23254124,3170.9,3170.5,0.455]
[1736825208136,3.2078,3171.1,3170.8,0.31551]
[1736825208346,3.2078,3171.1,3171.0,0.31549]
[1736825209342,3.2078,3171.1,3170.9,2.99912272]
[1736825209536,3.2078,3171.1,3170.9,3.31462272]
[1736825209843,0.31546,3171.3,3171.0,0.31549]
[1736825210238,0.31546,3171.3,3171.1,0.4857]
[1736825210542,0.31547,3171.2,3171.1,0.4857]
[1736825210942,0.31547,3171.3,3171.1,0.4857]
[1736825211144,3.2078,3171.3,3170.9,0.4647]
[1736825211341,0.31549,3171.0,3170.9,0.4647]
[1736825211834,0.3155,3170.9,3170.8,3.2078]
[1736825213034,0.4778,3171.1,3170.4,0.4558]
[1736825213338,0.31554,3170.6,3170.4,0.4558]
[1736825213837,0.31554,3170.5,3170.4,0.4558]
[1736825217222,3.2078,3170.9,3170.4,0.4558]
[1736825217523,0.31553,3170.7,3170.4,0.4558]
[1736825218325,0.55731194,3170.7,3170.4,0.4558]
[1736825219815,0.31554,3170.5,3170.4,0.4558]
[1736825220721,0.31554,3170.6,3170.4,0.4558]
[1736825221127,0.31553,3170.7,3170.4,0.4558]
[1736825222023,0.55201808,3170.7,3170.4,0.4558]
[1736825222321,0.31549,3171.0,3170.6,0.31553]
[1736825222526,0.4778,3171.1,3170.6,2.53442272]
[1736825222830,0.4589,3171.2,3170.9,0.3155]
[1736825223025,0.31548,3171.2,3171.0,0.4858]
[1736825223421,3.2078,3171.3,3171.0,0.4858]
[1736825223623,3.52327,3171.3,3171.0,0.4858]
[1736825224327,3.2078,3171.3,3171.1,0.31548]
[1736825224521,3.16275393,3172.0,3171.2,5.74222272]
[1736825224522,0.62833121,3172.0,3171.2,5.74222272]
[1736825224729,3.6689,3172.2,3171.6,2.53442272]
[1736825224929,0.3154,3172.0,3171.6,2.84985272]
[1736825225434,0.3154,3172.0,3171.6,3.34595272]
[1736825226229,0.31541,3171.9,3171.6,0.4961]
[1736825226531,0.31541,3171.9,3171.5,1.58444]
[1736825226532,0.31543,3171.7,3171.5,1.269]
[1736825226729,3.2078,3171.8,3171.5,1.269]
[1736825227033,3.6689,3172.2,3171.7,0.31542]
[1736825227233,0.3154,3172.0,3171.6,2.84985272]
[1736825227530,0.31541,3171.9,3171.5,1.58444]
[1736825227725,4.1588,3172.2,3171.5,1.269]
[1736825227934,6.69322272,3172.2,3171.5,1.269]
[1736825228136,0.31543,3171.6,3171.5,1.269]
[1736825228440,3.2078,3171.8,3171.5,1.269]
[1736825228628,0.31543,3171.6,3171.5,1.269]
[1736825229936,3.2078,3171.8,3171.1,1.271]
[1736825230139,0.31546,3171.4,3171.1,1.271]
[1736825230337,0.961,3171.5,3171.1,1.271]
[1736825230538,0.31546,3171.3,3171.1,1.271]
[1736825231239,0.31546,3171.4,3171.1,1.271]
[1736825231440,0.961,3171.5,3171.1,1.271]
[1736825232368,1.27645,3171.5,3171.1,1.271]
[1736825232669,0.31546,3171.4,3171.1,1.271]
[1736825234149,0.961,3171.5,3171.1,1.271]
[1736825234350,0.31545,3171.4,3171.1,1.271]
[1736825234647,3.85512727,3171.8,3171.4,0.31545]
[1736825234847,3.2078,3171.8,3171.2,0.4561]
[1736825235051,0.31547,3171.2,3171.1,1.271]
[1736825235342,0.31548,3171.2,3170.8,3.2078]
[1736825235546,0.3155,3170.9,3170.8,3.2078]
[1736825235752,0.31551,3170.9,3170.7,0.943]
[1736825236753,0.4506,3171.1,3170.3,0.31556]
[1736825236949,0.4506,3171.1,3170.2,3.2078]
[1736825236950,3.2078,3170.7,3170.2,3.2078]
[1736825237253,0.31556,3170.4,3170.2,3.2078]
[1736825237646,3.2078,3170.7,3170.2,3.2078]
[1736825238055,0.31556,3170.4,3170.2,3.2078]
[1736825238251,0.77582,3170.8,3170.4,0.31555]
[1736825238553,0.31551,3170.9,3170.5,0.31554]
[1736825238847,0.31551,3170.9,3170.2,3.2078]
[1736825238848,3.97389,3171.1,3170.7,2.84994272]
[1736825239048,3.97389,3171.1,3170.8,1.4488]
[1736825239643,0.3155,3170.9,3170.8,1.4488]
[1736825239848,3.6584,3171.1,3170.4,2.84996272]
[1736825240052,3.6584,3171.1,3170.4,2.53442272]
[1736825240248,3.6584,3171.1,3170.4,2.84997272]
[1736825240249,0.31552,3170.8,3170.4,2.84997272]
[1736825240752,3.6584,3171.1,3170.3,2.7198]
[1736825240753,0.31554,3170.6,3170.3,2.7198]
[1736825240951,0.31555,3170.5,3170.3,2.7198]
[1736825241153,0.31549,3171.0,3170.3,3.03536]
[1736825241453,0.31553,3170.7,3170.3,3.03536]
[1736825241654,0.31552,3170.8,3170.4,2.53442272]
[1736825241954,0.31554,3170.6,3170.4,2.53442272]
[1736825242153,0.31554,3170.6,3170.3,3.03536]
[1736825242455,0.31554,3170.6,3170.3,1.76436]
[1736825243251,3.6584,3171.1,3170.3,1.4488]
[1736825243454,0.31553,3170.7,3170.4,0.31555]
[1736825244751,0.31553,3170.7,3170.3,1.76436]
[1736825245152,3.6584,3171.1,3170.3,1.4488]
[1736825245357,0.31554,3170.5,3170.3,1.4488]
[1736825247754,3.6584,3171.1,3170.3,1.4488]
[1736825248258,0.31555,3170.5,3170.3,1.4488]
[1736825250061,0.31554,3170.6,3170.3,1.4488]
[1736825250659,3.6584,3171.1,3170.4,2.53442272]
[1736825250862,0.3155,3171.0,3170.6,0.31553]
[1736825251557,3.6584,3171.1,3170.4,2.53442272]
[1736825251767,0.31553,3170.7,3170.4,2.53442272]
[1736825252853,0.2330984,3171.0,3170.3,1.4488]
[1736825253158,0.31555,3170.5,3170.3,1.4488]
[1736825255862,0.4651,3170.9,3170.2,3.2078]
[1736825256163,0.31561,3169.8,3169.7,3.2078]
[1736825256467,0.4963,3170.4,3169.6,0.4758]
[1736825256468,0.31562,3169.7,3169.6,0.4758]
[1736825256663,0.31564,3169.5,3169.4,0.4949]
[1736825257859,0.4756,3169.6,3169.1,0.9603]
[1736825258060,0.31566,3169.4,3169.1,1.4346]
[1736825258361,3.16283166,3170.0,3169.1,1.4346]
[1736825258362,3.2078,3171.1,3169.3,2.53442272]
[1736825258559,0.4756,3170.9,3170.3,2.53442272]
[1736825258761,0.79111,3170.9,3170.5,0.31554]
[1736825259266,0.4756,3170.9,3170.4,4.6424]
[1736825259669,0.31551,3170.9,3170.5,0.31554]
[1736825260861,3.2078,3171.1,3170.4,4.6424]
[1736825260862,3.2078,3171.1,3170.6,2.53442272]
[1736825261167,3.2078,3171.1,3170.4,4.6424]
[1736825261560,0.31551,3170.9,3170.5,0.31554]
[1736825261761,0.3155,3171.0,3170.5,0.31554]
[1736825261965,0.3155,3170.9,3170.5,0.31554]
[1736825263666,3.2078,3171.1,3170.4,4.6424]
[1736825263966,0.3155,3170.9,3170.5,0.31554]
[1736825264366,0.31554,3170.6,3170.4,4.6424]
[1736825266270,0.31553,3170.7,3170.4,4.95795]
[1736825266970,0.4843,3171.0,3170.4,4.6424]
[1736825267163,0.4843,3171.0,3170.4,4.95795]
[1736825267164,0.31553,3170.7,3170.4,4.95795]
[1736825267965,0.72200398,3171.0,3170.4,4.6424]
[1736825268264,0.72200398,3171.0,3170.4,4.1678]
[1736825268463,0.31553,3170.7,3170.4,4.48335]
[1736825268662,0.72200398,3171.0,3170.4,4.48335]
[1736825268863,0.31553,3170.7,3170.4,4.1678]
[1736825269067,0.4875,3170.6,3170.4,4.1678]
[1736825269265,0.4875,3170.6,3170.4,3.6821]
[1736825269572,0.80304,3170.6,3170.4,3.6821]
[1736825269760,0.80304,3170.6,3170.4,3.2078]
[1736825270165,0.4875,3170.6,3170.4,3.2078]
[1736825270367,0.31554,3170.5,3170.4,3.2078]
[1736825272165,0.80304,3170.6,3170.4,3.2078]
[1736825272873,0.72200398,3171.0,3170.4,3.2078]
[1736825273065,0.4735,3170.9,3170.4,3.2078]
[1736825273265,0.31552,3170.8,3170.4,3.52335]
[1736825273775,0.31552,3170.8,3170.5,0.31554]
[1736825274066,0.72200398,3171.0,3170.4,3.2078]
[1736825274067,0.23770398,3171.0,3170.4,3.2078]
[1736825274272,3.2078,3171.1,3170.9,0.3155]
[1736825274461,3.2078,3171.1,3170.8,0.31551]
[1736825275173,3.2078,3171.1,3170.9,0.3155]
[1736825276068,3.2078,3171.1,3170.8,0.31551]
[1736825276271,0.31548,3171.2,3170.8,0.31551]
[1736825276573,0.3155,3171.0,3170.6,0.31553]
[1736825277365,0.4735,3171.3,3170.5,1.4058]
[1736825277572,0.31552,3170.8,3170.5,1.4058]
[1736825277971,0.31553,3170.7,3170.5,1.4058]
[1736825278169,0.79063,3170.7,3170.5,1.4058]
[1736825278366,0.4751,3170.7,3170.5,1.4058]
[1736825278569,0.79063,3170.7,3170.5,1.4058]
[1736825278969,0.4751,3170.7,3170.5,1.72134]
[1736825279171,0.4717,3171.0,3170.5,1.72134]
[1736825279373,0.31552,3170.7,3170.5,1.72134]
[1736825280076,0.31551,3170.9,3170.7,0.31552]
[1736825281072,0.31551,3170.8,3170.6,0.31553]
[1736825281269,0.31551,3170.9,3170.6,2.53442272]
[1736825282364,0.4751,3171.0,3170.5,1.72134]
[1736825282570,0.31553,3170.7,3170.5,1.72134]
[1736825283876,0.31551,3170.9,3170.6,0.31553]
[1736825285174,3.75508591,3171.1,3170.7,0.31552]
[1736825285476,0.62811653,3171.5,3170.9,5.74222272]
[1736825285673,0.3154,3172.0,3171.6,0.31543]
[1736825285874,0.31541,3171.9,3171.6,0.31543]
[1736825286069,4.6214,3172.1,3171.3,3.6832]
[1736825286376,0.31545,3171.4,3171.3,3.6832]
[1736825286579,5.24951653,3172.1,3171.3,3.99866]
[1736825286771,0.31543,3171.7,3171.4,0.31545]
[1736825287475,5.24951653,3172.1,3171.3,3.6832]
[1736825287674,0.31542,3171.8,3171.3,3.6832]
[1736825287877,0.31543,3171.7,3171.3,3.99866]
[1736825288271,4.6214,3172.1,3171.3,3.6832]
[1736825288474,0.31542,3171.8,3171.4,0.31545]
[1736825288675,5.24951653,3172.1,3171.3,3.6832]
[1736825288871,0.31545,3171.4,3171.3,3.2078]
[1736825289076,0.31551,3170.9,3170.7,0.4716]
[1736825289388,0.31551,3170.8,3170.7,0.4716]
[1736825289881,0.31553,3170.7,3170.3,3.52336]
[1736825290082,0.78273,3170.7,3170.3,3.99496]
[1736825290280,0.31554,3170.6,3170.3,3.99496]
[1736825290477,0.4672,3170.7,3170.3,3.6794]
[1736825290678,3.00162272,3170.7,3169.7,3.2078]
[1736825290881,3.2078,3170.8,3170.2,2.53442272]
[1736825291177,0.483,3171.1,3170.5,2.53442272]
[1736825291378,0.79849,3171.1,3170.7,0.31552]
[1736825291573,0.483,3171.1,3170.7,0.31552]
[1736825292379,0.4521,3171.5,3170.8,2.53442272]
[1736825292583,0.483,3171.8,3171.4,0.31545]
[1736825292886,0.483,3171.8,3171.5,0.4588]
[1736825293876,0.3154,3172.0,3171.6,0.31543]
[1736825294076,3.7041,3172.1,3171.5,0.4588]
[1736825294282,3.2078,3172.1,3171.8,0.31541]
[1736825294482,3.2078,3172.1,3171.9,0.9809]
[1736825294784,3.2078,3172.1,3171.5,0.4588]
[1736825295083,0.31542,3171.8,3171.5,0.4588]
[1736825295483,0.4612,3172.0,3171.5,0.4588]
[1736825295677,0.7766,3172.0,3171.5,0.77424]
[1736825296078,3.2078,3172.1,3171.5,0.4588]
[1736825296280,3.2078,3172.1,3171.7,2.84984272]
[1736825296580,0.77307,3172.3,3171.8,0.31541]
[1736825296909,0.4577,3172.3,3171.9,0.7754]
[1736825297099,0.77307,3172.3,3172.0,0.4664]
[1736825297301,0.4577,3172.3,3172.0,0.4664]
[1736825297497,0.4577,3172.3,3172.1,0.4778]
[1736825297697,0.77307,3172.3,3172.1,0.4778]
[1736825298393,0.4577,3172.3,3172.1,0.4778]
[1736825298694,0.77307,3172.3,3172.1,0.4778]
[1736825298893,0.31538,3172.2,3172.1,0.4778]
[1736825299084,0.31538,3172.2,3172.0,0.4664]
[1736825299282,0.4577,3172.3,3171.9,0.46]
[1736825299481,0.31539,3172.1,3171.9,0.46]
[1736825299676,0.4577,3172.3,3171.9,0.46]
[1736825299879,0.77307,3172.3,3171.9,0.7754]
[1736825300082,0.77307,3172.3,3172.0,0.9555]
[1736825303680,0.4577,3172.3,3172.0,0.9555]
[1736825304085,0.77307,3172.3,3172.0,0.9555]
[1736825305089,0.4577,3172.3,3172.0,0.9555]
[1736825305291,0.77307,3172.3,3172.0,0.9555]
[1736825305484,0.4577,3172.3,3172.0,1.27089]
[1736825305878,0.77307,3172.3,3172.0,0.9555]
[1736825306484,0.31538,3172.2,3172.0,0.9555]
[1736825306883,0.4577,3172.3,3172.0,0.9555]
[1736825307180,0.77307,3172.3,3172.0,0.9555]
[1736825307579,0.4577,3172.3,3172.0,0.9555]
[1736825307788,0.31541,3171.9,3171.7,3.2078]
[1736825307984,0.4577,3172.3,3171.7,3.2078]
[1736825308384,0.3154,3172.0,3171.7,3.2078]
[1736825310719,0.31541,3171.9,3171.7,3.2078]
[1736825311307,0.31541,3171.9,3171.7,3.52322]
[1736825311808,0.31541,3171.9,3171.7,3.2078]
[1736825312914,3.2078,3172.2,3171.6,0.4944]
[1736825313111,0.31546,3171.3,3171.2,3.2078]
[1736825313414,0.31552,3170.8,3170.5,0.31554]
[1736825313717,0.31553,3170.7,3170.4,3.94962272]
[1736825314011,0.31554,3170.6,3170.4,3.94962272]
[1736825314403,1.55637,3171.2,3170.4,3.94962272]
[1736825314607,1.55637,3171.2,3170.4,4.26517272]
[1736825314608,0.31553,3170.7,3170.4,4.26517272]
[1736825316008,0.31554,3170.5,3170.4,3.94962272]
[1736825316207,1.55637,3171.2,3170.4,0.9392]
[1736825316406,0.4582,3171.0,3170.4,0.9392]
[1736825316909,0.31556,3170.4,3170.1,7.01122272]
[1736825317099,0.31556,3170.4,3170.1,4.4768]
[1736825317393,0.31555,3170.5,3170.1,4.4768]
[1736825317994,0.31555,3170.5,3170.1,2.85000272]
[1736825318394,0.31556,3170.4,3170.1,2.53442272]
[1736825321001,0.31556,3170.4,3170.1,2.85000272]
[1736825321805,0.31556,3170.4,3170.1,2.53442272]
[1736825323598,0.31556,3170.4,3170.0,3.52339]
[1736825324397,0.23804412,3170.6,3170.0,3.52339]
[1736825324699,0.31557,3170.3,3170.0,3.52339]
[1736825325299,0.31558,3170.1,3170.0,3.2078]
[1736825326400,0.31557,3170.3,3170.0,3.52339]
[1736825327003,1.20206591,3170.5,3170.0,3.2078]
[1736825327200,0.31558,3170.1,3170.0,3.2078]
[1736825327597,0.31558,3170.2,3170.0,3.2078]
[1736825327994,0.31558,3170.2,3169.8,0.9547]
[1736825328199,0.31558,3170.2,3169.9,0.3156]
[1736825329596,4.40986591,3170.5,3169.8,6.69692272]
[1736825329796,0.31556,3170.4,3169.8,6.69692272]
[1736825330006,0.31556,3170.4,3170.0,0.31558]
[1736825330203,0.31556,3170.4,3169.8,6.69692272]
[1736825330405,0.31556,3170.4,3170.1,0.31558]
[1736825330703,4.40986591,3170.5,3169.9,0.3156]
[1736825330899,0.31557,3170.3,3170.0,0.31559]
[1736825331095,4.40986591,3170.5,3170.1,0.31558]
[1736825331096,0.31556,3170.4,3170.1,0.31558]
[1736825331906,4.40986591,3170.5,3170.0,0.31559]
[1736825331907,0.31557,3170.3,3170.0,0.31559]
[1736825333003,0.31556,3170.4,3170.1,0.31558]
[1736825333405,4.40986591,3170.5,3169.8,5.4315]
[1736825333704,0.31557,3170.3,3170.0,0.31559]
[1736825334101,4.40986591,3170.5,3169.8,5.4315]
[1736825334305,0.31556,3170.4,3170.1,0.31558]
[1736825334907,0.31557,3170.3,3170.0,0.31559]
[1736825335208,0.31556,3170.4,3170.1,0.31558]
[1736825335398,4.40986591,3170.5,3170.0,0.31559]
[1736825335399,0.31557,3170.3,3170.0,0.31559]
[1736825337103,0.31556,3170.4,3170.1,0.31558]
[1736825338010,0.31556,3170.3,3170.0,0.31559]
[1736825339502,0.31556,3170.3,3170.1,0.31558]
[1736825339806,0.31556,3170.4,3170.1,0.31558]
[1736825340310,0.31556,3170.3,3170.1,0.31558]
[1736825340510,0.31556,3170.3,3170.0,0.31559]
[1736825341908,0.31556,3170.3,3169.8,5.4315]
[1736825341909,0.31556,3170.4,3170.1,0.31558]
[1736825342105,0.31556,3170.4,3169.8,5.4315]
[1736825342299,0.31557,3170.3,3170.0,0.31559]
[1736825343205,0.31557,3170.3,3169.8,5.4315]
[1736825343409,0.31557,3170.3,3170.1,0.31558]
[1736825343599,4.1719,3170.5,3170.1,0.31558]
[1736825343600,0.31556,3170.4,3170.1,0.31558]
[1736825344013,0.55537676,3170.4,3170.1,0.31558]
[1736825345009,3.52334,3170.6,3170.3,0.31556]
[1736825345218,3.2078,3171.0,3170.4,0.9473]
[1736825345514,0.3155,3170.9,3170.6,0.31553]
[1736825346008,0.29603642,3171.2,3171.1,0.31548]
[1736825346220,1.43097826,3171.9,3171.1,3.2078]
[1736825346404,0.23976938,3172.0,3171.8,0.31541]
[1736825346714,0.23976938,3172.0,3171.7,0.31542]
[1736825346916,0.23976938,3172.0,3171.7,0.77902]
[1736825347413,0.4765,3172.3,3171.7,0.4636]
[1736825347602,0.79187,3172.3,3171.8,0.78481]
[1736825348203,0.4765,3172.3,3171.9,0.31541]
[1736825348708,0.79187,3172.3,3171.9,0.31541]
[1736825349112,0.4765,3172.3,3171.9,0.31541]
[1736825349416,0.4765,3172.3,3171.8,0.4694]
[1736825349713,0.79187,3172.3,3171.8,0.78481]
[1736825350016,0.4765,3172.3,3171.8,0.78481]
[1736825350216,0.31538,3172.2,3171.8,0.78481]
[1736825350510,3.2078,3172.5,3172.0,3.2078]
[1736825350713,3.2078,3172.5,3172.4,0.31536]
[1736825352615,3.2078,3172.5,3172.3,0.31536]
[1736825353018,3.2078,3172.5,3172.2,2.53442272]
[1736825353019,3.2078,3172.5,3172.2,0.31537]
[1736825353316,3.2078,3172.5,3172.3,0.31536]
[1736825353513,3.2078,3172.5,3172.0,3.2078]
[1736825353716,0.31531,3172.9,3172.5,0.31534]
[1736825354117,0.31531,3172.9,3172.6,0.4564]
[1736825354309,0.31529,3173.1,3172.6,0.4564]
[1736825354510,0.31529,3173.1,3172.7,0.31532]
[1736825354811,0.31529,3173.1,3172.7,0.4863]
[1736825355217,0.53661112,3173.6,3172.7,0.4863]
[1736825355218,3.4483747,3173.6,3172.8,2.53442272]
[1736825355517,3.4483747,3173.6,3173.1,2.53442272]
[1736825355518,0.31525,3173.5,3173.1,2.53442272]
[1736825356110,0.31525,3173.5,3173.1,0.31529]
[1736825356311,0.31525,3173.5,3173.0,0.31529]
[1736825356918,3.2078,3173.6,3173.1,0.31528]
[1736825357112,3.2078,3173.6,3173.1,2.53442272]
[1736825357321,3.2078,3173.6,3173.4,0.31525]
[1736825358017,3.2078,3173.6,3173.3,0.31526]
[1736825358810,3.2078,3173.6,3173.2,0.4868]
[1736825359018,3.2078,3173.6,3173.4,0.31525]
[1736825359208,3.2078,3173.6,3173.2,0.4868]
[1736825359416,3.52304,3173.6,3173.2,0.4868]
[1736825359617,3.2078,3173.6,3173.2,0.4868]
[1736825360215,3.2078,3173.6,3173.3,0.31527]
[1736825360415,0.31523,3173.7,3173.4,0.4506]
[1736825360612,0.31522,3173.8,3173.4,0.4506]
[1736825361415,0.31521,3173.9,3173.4,0.76585]
[1736825361817,0.31522,3173.8,3173.4,0.76585]
[1736825362409,0.31523,3173.7,3173.4,0.4506]
[1736825363020,0.9598,3174.0,3173.4,0.4506]
[1736825363222,0.31522,3173.8,3173.4,0.4506]
[1736825364617,0.31521,3173.9,3173.4,0.4506]
[1736825364813,0.31521,3173.9,3173.4,0.76585]
[1736825365210,0.9598,3174.0,3173.4,2.98502272]
[1736825365414,0.9598,3174.0,3173.5,0.31524]
[1736825365415,1.275,3174.0,3173.5,0.31524]
[1736825365624,0.9598,3174.0,3173.4,2.98502272]
[1736825365914,0.31521,3173.9,3173.5,0.31525]
[1736825366221,1.275,3174.0,3173.5,0.31525]
[1736825366521,0.3152,3174.0,3173.6,0.31523]
[1736825366717,0.31521,3173.9,3173.5,0.80534]
[1736825366916,0.31522,3173.8,3173.6,1.265]
[1736825368017,0.3152,3174.0,3173.6,1.265]
[1736825368220,0.31521,3173.9,3173.6,1.265]
[1736825368713,0.31522,3173.8,3173.6,1.265]
[1736825369112,0.31521,3173.9,3173.6,1.265]
[1736825369313,0.31522,3173.8,3173.6,1.265]
[1736825371822,3.2078,3174.2,3173.2,3.6946]
[1736825372126,0.31525,3173.5,3173.3,1.265]
[1736825372823,0.31525,3173.5,3173.2,0.4868]
[1736825373025,0.31523,3173.7,3173.3,0.31526]
[1736825373335,4.1463,3173.8,3173.2,2.2355]
[1736825373623,0.31525,3173.5,3173.2,2.55077]
[1736825374026,4.1463,3173.8,3173.2,2.2355]
[1736825374522,0.31525,3173.5,3173.2,2.55077]
[1736825374720,4.1463,3173.8,3173.2,2.2355]
[1736825374721,0.31526,3173.4,3173.2,2.2355]
[1736825375624,4.1463,3173.8,3173.2,2.2355]
[1736825375928,0.31526,3173.4,3173.2,2.55078]
[1736825376626,0.31526,3173.4,3173.2,2.2355]
[1736825376816,0.31526,3173.4,3173.2,2.55077]
[1736825377623,0.31525,3173.5,3173.2,2.55077]
[1736825378124,4.1463,3173.8,3173.2,1.265]
[1736825378427,0.31527,3173.3,3173.2,1.265]
[1736825379026,0.31528,3173.2,3173.1,5.74222272]
[1736825379223,0.31528,3173.2,3173.1,3.2078]
[1736825379418,0.31527,3173.3,3173.1,3.2078]
[1736825379625,0.471,3173.2,3173.1,3.2078]
[1736825380135,0.31527,3173.3,3173.1,6.05750272]
[1736825380932,0.31527,3173.3,3173.1,2.84970272]
[1736825381430,0.31527,3173.3,3173.1,4.60090272]
[1736825382326,0.31526,3173.4,3173.1,4.60090272]
[1736825384124,0.471,3173.7,3173.1,4.28562272]
[1736825384322,0.31524,3173.6,3173.1,4.28562272]
[1736825384532,0.78623,3173.7,3173.3,0.31526]
[1736825384931,0.471,3173.7,3173.6,0.31524]
[1736825385122,3.2078,3173.8,3173.6,0.31524]
[1736825385634,3.2078,3173.8,3173.7,0.31523]
[1736825388541,0.55271683,3174.0,3173.8,0.31521]
[1736825388732,0.23751683,3174.0,3173.8,0.31521]
[1736825391946,0.23751683,3174.0,3173.4,3.00552272]
[1736825392244,0.23751683,3174.0,3173.8,0.31521]
[1736825392748,0.31517,3174.3,3174.0,0.31519]
[1736825392939,0.31517,3174.3,3174.0,0.77869]
[1736825393246,0.31518,3174.2,3174.0,0.4635]
[1736825394943,0.9264,3174.4,3174.0,0.4635]
[1736825395254,0.31519,3174.1,3173.9,1.7406]
[1736825395952,0.31518,3174.2,3173.9,1.7406]
[1736825397047,0.3152,3174.0,3173.9,1.265]
[1736825398252,4.1342,3174.4,3173.7,3.2078]
[1736825398453,0.31521,3173.9,3173.7,3.2078]
[1736825398753,0.31522,3173.8,3173.7,3.2078]
[1736825398944,0.77512,3173.8,3173.7,3.2078]
[1736825399144,0.77512,3173.8,3173.6,1.264]
[1736825399753,0.4599,3173.8,3173.6,1.264]
[1736825400654,0.77512,3173.8,3173.6,1.264]
[1736825401652,1.24795,3173.8,3173.1,3.2078]
[1736825401855,0.941,3173.7,3173.2,0.31527]
[1736825402150,0.31526,3173.4,3173.1,3.2078]
[1736825402354,4.06411349,3173.9,3173.2,1.264]
[1736825402548,3.2078,3174.4,3173.8,2.53442272]
[1736825402748,0.32945458,3175.1,3174.3,3.2078]
[1736825402749,3.2078,3174.8,3174.3,3.2078]
[1736825402953,3.2078,3174.8,3174.5,2.53442272]
[1736825403148,1.3942,3175.1,3174.4,1.264]
[1736825403359,1.3942,3175.1,3173.9,4.1555]
[1736825403360,2.53442272,3174.6,3173.9,3.7021]
[1736825403564,0.3152,3174.0,3173.9,3.2078]
[1736825403762,3.2078,3174.4,3173.5,0.4507]
[1736825404058,0.80821,3173.9,3173.5,4.46174]
[1736825404263,0.80821,3173.9,3173.5,1.25394]
[1736825404965,0.493,3173.9,3173.5,0.9387]
[1736825405156,0.493,3173.9,3173.7,0.31523]
[1736825405355,0.493,3173.9,3173.6,2.53442272]
[1736825405561,0.493,3173.9,3173.5,4.1465]
[1736825405857,0.80821,3173.9,3173.6,0.31524]
[1736825406160,0.31521,3173.9,3173.6,2.84966272]
[1736825406458,2.53442272,3174.6,3174.2,0.31517]
[1736825406459,0.94032104,3174.6,3174.2,0.31517]
[1736825406760,0.31513,3174.7,3174.4,0.31515]
[1736825406965,3.2078,3174.8,3174.4,2.98372272]
[1736825407263,3.2078,3174.8,3174.7,0.31513]
[1736825408954,0.4558,3174.9,3174.5,0.31515]
[1736825409150,0.4558,3174.9,3174.4,2.98372272]
[1736825409354,0.4558,3174.9,3174.8,0.31512]
[1736825409556,0.31509,3175.1,3174.8,0.31512]
[1736825409849,0.77739,3175.1,3174.8,0.31512]
[1736825410360,0.4623,3175.1,3174.4,2.98372272]
[1736825410557,0.4623,3175.1,3174.8,0.31511]
[1736825412359,0.4623,3175.1,3174.7,3.79842272]
[1736825412557,0.4634,3175.4,3175.3,0.31507]
[1736825412749,0.23487031,3175.5,3175.3,2.53442272]
[1736825413257,0.31506,3175.4,3175.0,0.4659]
[1736825413454,0.31506,3175.4,3175.1,1.264]
[1736825414256,0.31507,3175.3,3175.1,1.264]
[1736825414453,0.73197031,3175.5,3175.0,1.7299]